bitfinex-derivatives/quotes_BTCF0:USTF0_20241224
["timestamp","ask_amount","ask_price","bid_price","bid_amount"]
[1735074868055,0.07122936,98043.0,98042.0,0.3618]
[1735074868254,0.07022936,98043.0,98042.0,0.3618]
[1735074868658,0.07322936,98043.0,98042.0,0.3618]
[1735074868852,0.008,98043.0,98042.0,0.3618]
[1735074869662,0.00796,98043.0,98042.0,0.3618]
[1735074871563,0.14979612,98070.0,98042.0,0.3618]
[1735074871564,0.06522936,98047.0,98042.0,0.3618]
[1735074871755,0.06522936,98047.0,98043.0,0.051036]
[1735074872658,0.06822936,98047.0,98043.0,0.051036]
[1735074873064,0.06822936,98047.0,98042.0,0.3618]
[1735074873767,0.06822936,98047.0,98043.0,0.003]
[1735074874261,0.06522936,98046.0,98043.0,0.004]
[1735074874568,0.06522936,98046.0,98044.0,0.17825864]
[1735074875861,0.051023,98069.0,98043.0,0.051036]
[1735074876061,0.34681134,98071.0,98055.0,0.3608]
[1735074876362,0.051022,98069.0,98064.0,0.3608]
[1735074876564,0.0374,98074.0,98064.0,0.3608]
[1735074876757,0.051024,98066.0,98064.0,0.3608]
[1735074878951,0.06047328,98066.0,98064.0,0.3608]
[1735074879756,0.00944928,98066.0,98052.0,0.17988741]
[1735074879957,0.3608,98072.0,98058.0,0.23767818]
[1735074880467,0.051027,98060.0,98058.0,0.23767818]
[1735074881065,0.051022,98069.0,98068.0,0.18108348]
[1735074882164,0.051029,98057.0,98055.0,0.3608]
[1735074882366,0.051029,98057.0,98056.0,0.01139504]
[1735074882869,0.051029,98057.0,98056.0,0.38217506]
[1735074883159,0.051029,98057.0,98056.0,0.82409693]
[1735074883874,0.051029,98057.0,98056.0,0.82509693]
[1735074884058,0.051029,98057.0,98056.0,0.65829493]
[1735074884262,0.051033,98049.0,98048.0,0.42675836]
[1735074884460,0.051037,98040.0,98039.0,0.48768384]
[1735074884662,0.411837,98040.0,98039.0,0.30168384]
[1735074884965,0.411837,98040.0,98039.0,0.3649536]
[1735074885163,0.411837,98040.0,98017.0,0.3608]
[1735074885359,0.051048,98019.0,98017.0,0.3608]
[1735074886665,0.051048,98019.0,98017.0,0.5433483]
[1735074887660,0.051048,98019.0,98017.0,0.3608]
[1735074888664,0.051048,98019.0,98018.0,0.00108535]
[1735074889268,0.051048,98019.0,98018.0,8.535e-05]
[1735074891970,0.051048,98019.0,98017.0,0.3608]
[1735074892775,0.14255087,98019.0,98017.0,0.3608]
[1735074894070,0.051048,98019.0,98017.0,0.3608]
[1735074894562,0.051048,98019.0,98017.0,0.3618]
[1735074895076,0.051048,98019.0,98017.0,0.3608]
[1735074895373,0.051048,98019.0,98017.0,0.3638]
[1735074895775,0.051048,98019.0,98017.0,0.3628]
[1735074896277,0.051048,98019.0,98017.0,0.3608]
[1735074896570,0.051048,98019.0,98005.0,0.36136]
[1735074896766,0.051055,98006.0,98005.0,0.3608]
[1735074898667,0.051055,98006.0,98005.0,0.3618]
[1735074899472,0.051055,98006.0,98005.0,0.3608]
[1735074900177,0.09150287,98011.0,98010.0,0.051053]
[1735074900383,0.02794347,98017.0,98016.0,0.05105]
[1735074900675,0.1832109,98033.0,98024.0,0.051046]
[1735074900880,0.1832109,98033.0,98024.0,0.3608]
[1735074901179,0.1000436,98040.0,98024.0,0.3608]
[1735074901180,0.05104,98035.0,98032.0,0.3608]
[1735074901778,0.051041,98034.0,98032.0,0.3608]
[1735074903879,0.051041,98034.0,98004.0,0.1825483]
[1735074903880,0.3608,98037.0,98010.0,0.3608]
[1735074904180,0.051052,98013.0,98010.0,0.3608]
[1735074905171,0.051052,98013.0,98010.0,0.3638]
[1735074905485,0.051052,98013.0,98010.0,0.3608]
[1735074905972,1.5,98029.0,98010.0,0.3608]
[1735074906173,0.051048,98019.0,98018.0,0.3608]
[1735074907772,0.051052,98011.0,98010.0,0.3618]
[1735074908580,0.051052,98011.0,98010.0,0.3608]
[1735074909085,0.051055,98006.0,98005.0,0.0403]
[1735074910182,0.052055,98006.0,98005.0,0.0403]
[1735074911586,0.10170267,98006.0,98005.0,0.0403]
[1735074911783,0.10070267,98006.0,98005.0,0.0403]
[1735074911981,0.10170267,98006.0,98005.0,0.0403]
[1735074912183,0.10170267,98006.0,98005.0,0.0413]
[1735074914488,0.10955628,98006.0,98005.0,0.0413]
[1735074915279,0.10170267,98006.0,98005.0,0.0413]
[1735074915485,0.13602858,98017.0,98005.0,0.0413]
[1735074915687,0.13602858,98017.0,98016.0,0.3608]
[1735074915979,0.01222858,98017.0,98016.0,0.3608]
[1735074916388,0.2442812,98036.0,98030.0,0.051042]
[1735074916588,0.2442812,98036.0,98031.0,0.3608]
[1735074917589,0.18331697,98032.0,98031.0,0.772642]
[1735074918696,0.15271114,98038.0,98037.0,0.051039]
[1735074920080,0.15271114,98039.0,98037.0,0.051039]
[1735074921283,0.15271114,98039.0,98037.0,0.052039]
[1735074921479,0.051038,98038.0,98037.0,0.001]
[1735074922396,1.551038,98038.0,98037.0,0.001]
[1735074922591,0.051038,98038.0,98037.0,0.001]
[1735074927384,0.15271114,98040.0,98037.0,0.052039]
[1735074927694,0.15271114,98040.0,98039.0,0.3608]
[1735074928889,0.20374814,98041.0,98039.0,0.3608]
[1735074929491,0.15271114,98041.0,98039.0,0.3608]
[1735074930403,0.15271114,98042.0,98039.0,0.3648]
[1735074930794,0.15271114,98042.0,98040.0,0.051037]
[1735074931097,0.15271114,98042.0,98040.0,0.091437]
[1735074931498,0.15271114,98048.0,98042.0,0.051036]
[1735074931693,0.15271114,98048.0,98047.0,0.3608]
[1735074932490,0.051032,98051.0,98047.0,0.3608]
[1735074932999,0.051032,98051.0,98047.0,0.3628]
[1735074933691,0.051032,98051.0,98047.0,0.3718]
[1735074935097,0.15271114,98055.0,98047.0,0.3718]
[1735074935304,0.15271114,98057.0,98055.0,0.051029]
[1735074935502,0.15271114,98057.0,98056.0,0.3608]
[1735074936000,0.15271114,98057.0,98055.0,0.3608]
[1735074936189,0.15271114,98057.0,98056.0,0.3608]
[1735074936587,0.10053379,98070.0,98056.0,0.3608]
[1735074936788,0.05103,98055.0,98047.0,0.38037587]
[1735074936996,0.05103,98055.0,98047.0,0.37981587]
[1735074937396,0.05103,98055.0,98047.0,0.37081587]
[1735074937802,0.05103,98055.0,98047.0,0.36881587]
[1735074938005,0.05103,98055.0,98047.0,0.37781587]
[1735074938690,0.05103,98055.0,98047.0,0.38081587]
[1735074939500,0.05103,98055.0,98047.0,0.37181587]
[1735074939705,0.05103,98055.0,98047.0,0.38081587]
[1735074940407,0.05103,98055.0,98047.0,0.3728]
[1735074940605,0.3608,98058.0,98047.0,0.3728]
[1735074940801,0.051033,98049.0,98047.0,0.012]
[1735074941108,0.0809,98048.0,98047.0,0.012]
[1735074941405,0.1217,98048.0,98047.0,0.012]
[1735074941605,0.1217,98048.0,98047.0,0.011]
[1735074942807,0.051039,98038.0,98031.0,0.3608]
[1735074944008,0.15246973,98036.0,98031.0,0.3698]
[1735074944200,0.15246973,98036.0,98031.0,0.3718]
[1735074944395,0.15246973,98036.0,98031.0,0.3628]
[1735074944601,0.09997378,98041.0,98031.0,0.3718]
[1735074944998,0.051041,98034.0,98031.0,0.3698]
[1735074945201,0.051041,98034.0,98031.0,0.3718]
[1735074945610,0.051041,98033.0,98031.0,0.011]
[1735074947112,0.051041,98033.0,98031.0,0.01]
[1735074947804,0.051042,98031.0,98026.0,0.3608]
[1735074948610,0.1833347,98027.0,98026.0,0.3608]
[1735074949112,0.1833347,98027.0,98026.0,0.3618]
[1735074949515,0.1833347,98027.0,98026.0,0.3708]
[1735074950419,0.1843347,98027.0,98026.0,0.3708]
[1735074952002,0.1843347,98027.0,98026.0,0.01]
[1735074952205,0.001,98027.0,98026.0,0.01]
[1735074953708,0.001,98027.0,98026.0,0.009]
[1735074954017,0.19252361,98027.0,98026.0,0.009]
[1735074954319,0.1843347,98027.0,98026.0,0.009]
[1735074955115,0.001,98027.0,98026.0,0.009]
[1735074961323,0.051042,98032.0,98026.0,0.056044]
[1735074962021,0.18352057,98033.0,98031.0,0.411842]
[1735074962329,0.18300056,98033.0,98031.0,0.411842]
[1735074962526,0.0393,98048.0,98036.0,0.051039]
[1735074962527,0.18300056,98037.0,98036.0,0.051039]
[1735074963917,0.0393,98048.0,98036.0,0.002]
[1735074963918,0.15250153,98042.0,98036.0,0.002]
[1735074964227,0.15250153,98042.0,98041.0,0.3608]
[1735074965122,0.15350153,98042.0,98041.0,0.3608]
[1735074965527,0.001,98042.0,98041.0,0.3608]
[1735074966626,0.001,98042.0,98041.0,0.411837]
[1735074967628,0.001,98042.0,98041.0,0.3608]
[1735074968227,0.15358503,98042.0,98041.0,0.3608]
[1735074969528,0.001,98042.0,98041.0,0.3608]
[1735074977640,0.051042,98032.0,98031.0,0.3608]
[1735074977939,0.051044,98027.0,98020.0,0.24366824]
[1735074978138,0.051044,98027.0,98026.0,0.54355118]
[1735074979027,0.051044,98027.0,98026.0,0.3608]
[1735074979231,0.3608,98027.0,98006.0,0.3608]
[1735074979428,0.051055,98007.0,98006.0,0.3608]
[1735074981539,0.15258503,98014.0,98006.0,0.37830308]
[1735074981928,0.15258503,98014.0,98007.0,0.0397]
[1735074982529,0.051045,98025.0,98024.0,0.051045]
[1735074983447,0.15258503,98029.0,98024.0,0.051045]
[1735074984242,0.16137989,98029.0,98024.0,0.051045]
[1735074984838,0.16137989,98029.0,98024.0,0.055045]
[1735074985142,0.16137989,98029.0,98024.0,0.056045]
[1735074985634,0.16137989,98029.0,98024.0,0.055045]
[1735074985842,0.15258503,98028.0,98024.0,0.052045]
[1735074986042,0.15258503,98028.0,98024.0,0.059045]
[1735074986431,0.3618,98027.0,98024.0,0.058045]
[1735074987044,0.3618,98027.0,98025.0,0.051045]
[1735074987743,0.412844,98027.0,98024.0,0.004]
[1735074988039,0.411844,98027.0,98024.0,0.001]
[1735074988244,0.411844,98027.0,98025.0,0.007]
[1735074988632,0.411844,98027.0,98025.0,0.004]
[1735074988633,0.229494,98027.0,98025.0,0.004]
[1735074988834,0.00056001,98066.0,98051.0,0.051032]
[1735074989033,0.059,98071.0,98051.0,0.051032]
[1735074989034,0.00117185,98060.0,98059.0,0.051027]
[1735074989340,0.00117185,98060.0,98059.0,0.411827]
[1735074989941,0.051023,98069.0,98061.0,0.051026]
[1735074990142,0.051023,98069.0,98068.0,0.3608]
[1735074990548,0.23402356,98069.0,98068.0,0.3608]
[1735074990948,0.18300056,98069.0,98068.0,0.411823]
[1735075000062,0.00882085,98075.0,98074.0,0.05102]
[1735075000268,0.051009,98095.0,98074.0,0.3608]
[1735075000462,0.051009,98095.0,98094.0,0.3608]
[1735075000650,0.05981381,98095.0,98094.0,0.3608]
[1735075000963,0.24281437,98095.0,98094.0,0.3608]
[1735075001161,0.19180537,98095.0,98094.0,0.411809]
[1735075001668,0.051012,98090.0,98082.0,0.3608]
[1735075003067,0.051012,98090.0,98083.0,0.051014]
[1735075003462,0.054,98089.0,98083.0,0.051014]
[1735075004369,0.054,98089.0,98082.0,0.3628]
[1735075004565,0.051015,98084.0,98083.0,0.002]
[1735075004961,0.23401556,98084.0,98083.0,0.002]
[1735075008173,0.051015,98084.0,98083.0,0.002]
[1735075009777,0.051015,98084.0,98082.0,0.3608]
[1735075009975,0.05992753,98084.0,98083.0,0.002]
[1735075010780,0.05992753,98084.0,98083.0,0.053015]
[1735075010963,0.00891253,98084.0,98083.0,0.053015]
[1735075011278,0.00891253,98084.0,98082.0,0.3608]
[1735075011279,0.051012,98090.0,98087.0,0.051013]
[1735075011666,0.18300056,98089.0,98087.0,0.051013]
[1735075016583,0.18300056,98089.0,98082.0,0.3608]
[1735075016584,0.18300056,98088.0,98067.0,0.3608]
[1735075016877,0.18300056,98088.0,98064.0,0.051024]
[1735075016878,0.3608,98073.0,98064.0,0.051024]
[1735075017084,0.051019,98076.0,98064.0,0.051024]
[1735075017282,0.0587,98075.0,98063.0,0.18275118]
[1735075017475,0.051022,98070.0,98059.0,0.36055062]
[1735075017871,0.051023,98068.0,98067.0,0.3698]
[1735075018275,0.37025125,98088.0,98067.0,0.3698]
[1735075018470,0.3608,98098.0,98086.0,0.3608]
[1735075018675,0.051013,98088.0,98086.0,0.3608]
[1735075018877,0.064,98097.0,98076.0,0.3608]
[1735075019082,0.09992227,98090.0,98076.0,0.3608]
[1735075019278,0.051016,98081.0,98076.0,0.3608]
[1735075019880,0.051017,98080.0,98076.0,0.3658]
[1735075021077,0.051017,98080.0,98076.0,0.3668]
[1735075021587,0.051017,98079.0,98076.0,0.3668]
[1735075022686,0.051009,98095.0,98076.0,0.3658]
[1735075022884,0.051017,98080.0,98076.0,0.3658]
[1735075023280,0.051017,98080.0,98076.0,0.3608]
[1735075023481,0.051017,98080.0,98076.0,0.3658]
[1735075024791,0.0999036,98090.0,98076.0,0.3658]
[1735075024989,0.051017,98079.0,98076.0,0.3658]
[1735075025881,0.051017,98079.0,98076.0,0.3608]
[1735075026080,0.051017,98079.0,98076.0,0.3658]
[1735075026589,0.051018,98077.0,98076.0,0.3658]
[1735075027485,0.051018,98077.0,98076.0,0.3608]
[1735075027690,0.051018,98077.0,98076.0,0.3658]
[1735075029580,0.051013,98086.0,98080.0,0.051016]
[1735075029782,0.06025627,98086.0,98085.0,0.3608]
[1735075030692,0.05101,98092.0,98088.0,0.051012]
[1735075030992,0.36999832,98098.0,98088.0,0.051012]
[1735075031195,0.051008,98097.0,98088.0,0.051012]
[1735075031380,0.051009,98096.0,98088.0,0.051012]
[1735075031705,0.051009,98095.0,98088.0,0.051012]
[1735075031991,0.051009,98095.0,98094.0,0.3608]
[1735075032292,0.151006,98100.0,98094.0,0.3608]
[1735075032493,0.151006,98100.0,98095.0,0.0616]
[1735075032793,0.1,98100.0,98098.0,0.051007]
[1735075033586,0.1,98100.0,98095.0,0.0616]
[1735075034388,0.102,98100.0,98095.0,0.0616]
[1735075035892,0.102,98100.0,98095.0,0.0676]
[1735075036098,0.051007,98098.0,98095.0,0.0676]
[1735075036297,0.051008,98097.0,98095.0,0.0676]
[1735075037682,0.051008,98097.0,98095.0,0.0686]
[1735075038989,0.051008,98097.0,98095.0,0.0626]
[1735075039185,0.051008,98097.0,98095.0,0.0676]
[1735075039495,0.051008,98097.0,98095.0,0.0686]
[1735075042095,0.051008,98097.0,98095.0,0.001]
[1735075042285,0.051017,98079.0,98074.0,0.3608]
[1735075042489,0.051017,98079.0,98060.0,0.4607036]
[1735075042490,0.051017,98079.0,98071.0,0.00935602]
[1735075042790,0.051017,98079.0,98060.0,0.4612636]
[1735075042791,0.051024,98065.0,98064.0,0.24280775]
[1735075042988,0.411824,98065.0,98064.0,0.24280775]
[1735075043191,0.051029,98056.0,98055.0,3e-07]
[1735075043397,0.411829,98056.0,98055.0,3e-07]
[1735075044298,0.41043293,98056.0,98030.0,0.0999036]
[1735075044489,0.051041,98033.0,98030.0,0.0999036]
[1735075044996,0.051041,98033.0,98018.0,0.05116541]
[1735075044997,0.051041,98033.0,98026.0,0.00912704]
[1735075045193,0.051041,98033.0,98020.0,0.0999036]
[1735075045395,0.051041,98033.0,98018.0,0.00011741]
[1735075045996,0.051041,98033.0,98031.0,0.3668]
[1735075046707,0.051041,98033.0,98031.0,0.3608]
[1735075047000,0.2336694,98033.0,98031.0,0.3708]
[1735075047208,0.04963389,98032.0,98031.0,0.3708]
[1735075047496,0.04963389,98032.0,98031.0,0.3688]
[1735075048297,0.04963389,98032.0,98031.0,0.3678]
[1735075048497,0.04963389,98032.0,98031.0,0.3618]
[1735075048803,0.04963389,98032.0,98031.0,0.3688]
[1735075051208,0.20292585,98033.0,98031.0,0.3688]
[1735075052401,0.3608,98032.0,98031.0,0.008]
[1735075052597,0.051048,98019.0,98018.0,0.00011741]
[1735075053794,0.051048,98019.0,98018.0,0.00911741]
[1735075054400,0.10069319,98019.0,98018.0,0.009]
[1735075054591,0.051056,98004.0,98003.0,0.3608]
[1735075054794,0.051059,97998.0,97993.0,0.00983027]
[1735075054996,0.051059,97998.0,97993.0,0.00919027]
[1735075055204,0.051059,97998.0,97987.0,0.051065]
[1735075055601,0.051059,97998.0,97992.0,0.3608]
[1735075055999,0.051059,97998.0,97993.0,0.006]
[1735075056192,0.052059,97998.0,97993.0,0.006]
[1735075057213,0.05106,97997.0,97993.0,0.006]
[1735075057506,0.05106,97996.0,97993.0,0.006]
[1735075058012,0.051061,97994.0,97992.0,0.3668]
[1735075058707,0.051061,97994.0,97993.0,0.003]
[1735075059309,0.051061,97994.0,97993.0,0.009]
[1735075059497,0.051061,97994.0,97993.0,0.006]
[1735075059805,0.052061,97994.0,97993.0,0.006]
[1735075061107,0.0909202,98005.0,98003.0,0.051057]
[1735075061296,0.0909202,98005.0,98004.0,0.3608]
[1735075061717,0.051055,98007.0,98005.0,0.051056]
[1735075061913,0.12122693,98009.0,98004.0,0.3608]
[1735075061914,0.12122693,98009.0,98008.0,0.051054]
[1735075063001,0.051052,98012.0,98008.0,0.051054]
[1735075063207,0.051052,98012.0,98004.0,0.72416]
[1735075063406,0.09072521,98025.0,98016.0,0.05105]
[1735075063714,0.051048,98019.0,98018.0,0.3608]
[1735075064910,0.052048,98019.0,98018.0,0.3668]
[1735075066710,0.051048,98019.0,98018.0,0.3618]
[1735075066897,0.051048,98019.0,98018.0,0.3668]
[1735075068109,0.12122693,98023.0,98018.0,0.3658]
[1735075068110,0.051047,98022.0,98018.0,0.3658]
[1735075068301,0.051047,98022.0,98018.0,0.3618]
[1735075068502,0.12122693,98020.0,98018.0,0.3618]
[1735075068899,0.17227493,98020.0,98018.0,0.3618]
[1735075069910,0.17227493,98020.0,98018.0,0.006]
[1735075070204,0.17227493,98020.0,98004.0,0.3608]
[1735075070205,0.051056,98005.0,98004.0,0.3608]
[1735075070906,0.051056,98005.0,97985.0,0.13116]
[1735075070907,0.3608,98005.0,97985.0,0.13116]
[1735075071211,0.3608,98005.0,97991.0,0.051063]
[1735075071212,0.051058,98000.0,97991.0,0.051063]
[1735075071396,0.0616,98004.0,97985.0,0.0655]
[1735075071601,0.0999036,98001.0,97985.0,0.0655]
[1735075072003,0.051062,97994.0,97987.0,0.051065]
[1735075072207,0.051063,97990.0,97987.0,0.051065]
[1735075073495,0.04964597,97989.0,97987.0,0.051065]
[1735075074205,0.04964597,97989.0,97987.0,0.056065]
[1735075075020,0.04964597,97989.0,97987.0,0.051065]
[1735075075210,0.04964597,97989.0,97987.0,0.056065]
[1735075076012,0.05064597,97989.0,97987.0,0.059065]
[1735075078208,0.04964597,97988.0,97987.0,0.059065]
[1735075079109,0.10070997,97988.0,97987.0,0.059065]
[1735075079514,0.10170997,97988.0,97987.0,0.059065]
[1735075080217,0.10170997,97988.0,97987.0,0.054065]
[1735075080519,0.10170997,97988.0,97987.0,0.059065]
[1735075081810,0.05064597,97988.0,97987.0,0.059065]
[1735075082021,0.05064597,97988.0,97987.0,0.06935282]
[1735075082817,0.21344739,98009.0,98008.0,0.051054]
[1735075083017,0.22293045,98009.0,97990.0,0.3608]
[1735075083220,0.0999036,98000.0,97991.0,2.3e-07]
[1735075083525,0.05108,97958.0,97957.0,0.3608]
[1735075083711,0.05108,97959.0,97957.0,0.411881]
[1735075083911,0.05108,97959.0,97957.0,0.3608]
[1735075085318,0.01755955,98008.0,97957.0,0.3608]
[1735075085319,0.3608,97991.0,97957.0,0.3608]
[1735075085514,0.05107,97978.0,97975.0,0.051071]
[1735075085814,0.05107,97977.0,97975.0,0.051071]
[1735075086205,0.051067,97984.0,97977.0,0.05107]
[1735075086406,0.051067,97984.0,97980.0,0.411868]
[1735075086823,0.051067,97984.0,97981.0,0.051068]
[1735075087323,0.063,97990.0,97982.0,0.051067]
[1735075087823,0.001,97984.0,97982.0,0.051067]
[1735075089107,0.063,97990.0,97981.0,0.001]
[1735075089310,0.00940991,97991.0,97989.0,0.3608]
[1735075089508,0.051059,97999.0,97991.0,0.051063]
[1735075089712,0.051059,97999.0,97998.0,0.3608]
[1735075091513,0.0645,98001.0,97998.0,0.3608]
[1735075091713,0.21344739,98010.0,97998.0,0.3608]
[1735075091917,0.21344739,98010.0,98009.0,0.3608]
[1735075092308,0.21344739,98010.0,98009.0,0.4213]
[1735075092917,0.0625,98023.0,98018.0,0.051049]
[1735075093225,0.0625,98023.0,98019.0,0.3608]
[1735075093914,0.113546,98023.0,98019.0,0.3608]
[1735075095519,0.0625,98023.0,98009.0,0.00056]
[1735075095725,0.051054,98009.0,98000.0,0.3608]
[1735075096111,0.15012808,98020.0,98000.0,0.3608]
[1735075096312,0.051057,98002.0,98000.0,0.3608]
[1735075096518,0.0625,98001.0,97985.0,0.051066]
[1735075096721,0.051062,97993.0,97985.0,0.051066]
[1735075096914,0.051062,97993.0,97992.0,0.3608]
[1735075099129,0.10171398,97993.0,97992.0,0.3608]
[1735075099825,0.10171398,97993.0,97992.0,0.3618]
[1735075100223,0.05065198,97993.0,97992.0,0.3618]
[1735075100427,0.05065198,97993.0,97992.0,0.3608]
[1735075100725,0.05065198,97993.0,97992.0,0.6618]
[1735075100929,0.21344739,98007.0,98006.0,0.051055]
[1735075101130,0.21344739,98007.0,98006.0,0.411855]
[1735075101636,0.15251005,98008.0,98006.0,0.411855]
[1735075101824,0.15251005,98008.0,98007.0,0.3608]
[1735075102825,0.3910084,98034.0,98007.0,0.3608]
[1735075103131,0.09146466,98008.0,98007.0,0.3608]
[1735075103430,0.09246466,98008.0,98007.0,0.7216]
[1735075103628,0.09246466,98008.0,98007.0,0.7246]
[1735075104233,0.001,98008.0,98007.0,0.7246]
[1735075104827,0.09146466,98012.0,98008.0,0.051054]
[1735075105133,0.09146466,98012.0,98011.0,0.051052]
[1735075105628,0.09146466,98015.0,98007.0,0.72716]
[1735075105824,0.09146466,98015.0,98014.0,0.051051]
[1735075107231,0.05105,98017.0,98016.0,0.05105]
[1735075107424,0.051046,98024.0,98016.0,0.3608]
[1735075107631,0.051046,98024.0,98017.0,0.051049]
[1735075108031,0.00946462,98026.0,98016.0,0.3608]
[1735075108227,0.051046,98023.0,98018.0,0.051049]
[1735075108532,0.051046,98023.0,98020.0,0.051047]
[1735075110528,0.051046,98023.0,98021.0,0.051047]
[1735075110733,0.1828552,98032.0,98020.0,0.001]
[1735075110931,0.1828552,98032.0,98031.0,0.3608]
[1735075111237,0.1828552,98032.0,98031.0,0.411842]
[1735075112232,0.0637,98034.0,98033.0,0.051041]
[1735075113335,0.051041,98033.0,98031.0,0.3608]
[1735075115138,0.054041,98033.0,98031.0,0.3608]
[1735075115338,0.057041,98033.0,98031.0,0.3608]
[1735075115835,0.006,98033.0,98031.0,0.411842]
[1735075117437,0.0496307,98032.0,98031.0,0.411842]
[1735075118633,0.0526307,98032.0,98031.0,0.411842]
[1735075118835,0.0556307,98032.0,98031.0,0.411842]
[1735075120629,0.051047,98021.0,98020.0,0.00930891]
[1735075120941,0.051047,98021.0,98019.0,0.3608]
[1735075121244,0.067,98020.0,98019.0,0.3608]
[1735075122439,0.051051,98014.0,98013.0,0.051051]
[1735075124133,0.051053,98010.0,98009.0,0.3608]
[1735075125442,0.052053,98010.0,98009.0,0.3618]
[1735075125743,0.1026837,98010.0,98009.0,0.3618]
[1735075125934,0.1016837,98010.0,98009.0,0.3608]
[1735075126346,0.0506307,98010.0,98009.0,0.3608]
[1735075127731,0.24393987,98022.0,98021.0,0.051047]
[1735075127936,0.27443235,98028.0,98021.0,0.3608]
[1735075128142,0.27443235,98028.0,98027.0,0.3608]
[1735075128337,0.05104,98035.0,98027.0,0.3608]
[1735075128533,0.24411781,98037.0,98036.0,0.051039]
[1735075129839,0.005,98037.0,98036.0,0.051039]
[1735075131035,0.009,98037.0,98036.0,0.051039]
[1735075139151,0.13102441,98037.0,98036.0,0.051039]
[1735075140757,0.15261566,98047.0,98046.0,0.051034]
[1735075140950,0.0700195,98047.0,98046.0,0.772634]
[1735075141155,0.0700195,98048.0,98046.0,0.772634]
[1735075141960,0.001,98047.0,98046.0,0.773634]
[1735075142579,0.001,98048.0,98046.0,0.773634]
[1735075142855,0.09145279,98052.0,98051.0,0.051032]
[1735075143957,0.09145279,98058.0,98051.0,0.351032]
[1735075144162,0.09145279,98058.0,98057.0,0.411828]
[1735075145358,0.09145279,98065.0,98064.0,0.051025]
[1735075146366,7.9e-07,98065.0,98064.0,0.351025]
[1735075148656,7.9e-07,98065.0,98064.0,0.352025]
[1735075149147,0.1286,98093.0,98092.0,0.05101]
[1735075149456,0.1286,98093.0,98092.0,0.41181]
[1735075150766,0.07826776,98095.0,98094.0,0.051009]
[1735075150951,0.0685,98095.0,98094.0,0.051009]
[1735075152458,0.0685,98095.0,98094.0,0.056009]
[1735075154068,0.0685,98095.0,98094.0,0.06580022]
[1735075155363,0.1,98100.0,98099.0,0.051007]
[1735075155668,0.1,98100.0,98099.0,0.411807]
[1735075156558,0.1,98100.0,98099.0,0.413807]
[1735075157169,1e-06,98100.0,98099.0,0.413807]
[1735075169561,0.050991,98129.0,98099.0,0.413807]
[1735075169562,0.3608,98163.0,98099.0,0.78112688]
[1735075169762,0.1329,98143.0,98142.0,0.15083099]
[1735075170061,0.1329,98143.0,98142.0,0.050984]
[1735075171471,0.1419,98143.0,98142.0,0.051984]
[1735075172060,0.1449,98143.0,98142.0,0.051984]
[1735075172468,0.1449,98143.0,98142.0,0.06185782]
[1735075176376,0.11269805,98191.0,98146.0,0.050982]
[1735075176674,0.11269805,98191.0,98161.0,0.050974]
[1735075176675,0.066,98162.0,98161.0,0.050974]
[1735075176873,0.066,98162.0,98161.0,0.772574]
[1735075178675,0.066,98162.0,98161.0,0.773574]
[1735075178676,0.074,98162.0,98161.0,0.773574]
[1735075179971,0.3608,98224.0,98187.0,0.05096]
[1735075180179,0.00972675,98202.0,98199.0,0.411755]
[1735075180572,0.09984699,98210.0,98199.0,0.3608]
[1735075180771,0.150954,98200.0,98199.0,0.2533]
[1735075181273,0.101,98200.0,98199.0,0.2533]
[1735075181682,0.1,98200.0,98199.0,0.2533]
[1735075181981,0.1,98200.0,98199.0,0.2553]
[1735075182183,0.050954,98201.0,98199.0,0.2553]
[1735075182880,0.350954,98201.0,98199.0,0.0443]
[1735075183076,0.050962,98185.0,98184.0,0.3608]
[1735075183270,0.050962,98185.0,98179.0,0.1827144]
[1735075183471,0.050967,98175.0,98174.0,0.08618235]
[1735075183679,1.911767,98175.0,98174.0,3.5e-07]
[1735075183978,0.05097,98169.0,98148.0,0.42581181]
[1735075184178,0.3608,98162.0,98148.0,0.42581181]
[1735075184483,0.050981,98149.0,98148.0,0.42525181]
[1735075184777,0.050984,98142.0,98141.0,0.00056]
[1735075184966,0.050984,98142.0,98139.0,0.36136]
[1735075185168,0.050984,98142.0,98139.0,0.3608]
[1735075186273,0.050984,98142.0,98140.0,0.050985]
[1735075186676,0.3608,98162.0,98139.0,0.3608]
[1735075186878,0.050979,98152.0,98150.0,0.3608]
[1735075188373,0.050979,98152.0,98150.0,0.3698]
[1735075189072,0.050979,98152.0,98150.0,0.42078]
[1735075190276,0.050979,98152.0,98150.0,0.42278]
[1735075190478,0.050979,98152.0,98150.0,0.3718]
[1735075190680,0.050979,98152.0,98150.0,0.3698]
[1735075190881,0.050979,98152.0,98150.0,0.3708]
[1735075191581,0.050979,98152.0,98150.0,0.41878]
[1735075192983,0.050979,98152.0,98150.0,0.41978]
[1735075193385,0.050979,98152.0,98150.0,0.42078]
[1735075193883,0.050979,98152.0,98150.0,0.3618]
[1735075194086,0.050979,98152.0,98150.0,0.3678]
[1735075194476,0.050979,98152.0,98150.0,0.3628]
[1735075194677,0.050979,98152.0,98150.0,0.3698]
[1735075194986,0.050979,98152.0,98150.0,0.3628]
[1735075195175,0.050979,98152.0,98150.0,0.3688]
[1735075196585,0.050979,98152.0,98150.0,0.3678]
[1735075197088,0.050979,98152.0,98150.0,0.3618]
[1735075197391,0.050979,98152.0,98150.0,0.3678]
[1735075198176,0.050979,98152.0,98150.0,0.3688]
[1735075198784,0.050979,98152.0,98150.0,0.3698]
[1735075199387,0.33208127,98160.0,98150.0,0.3698]
[1735075199587,0.18244088,98160.0,98158.0,0.411776]
[1735075199787,0.18244088,98160.0,98158.0,0.3608]
[1735075200089,0.050975,98159.0,98158.0,0.3608]